Cogmind - Beta 15 @@@ ROGUE MODE // 2025.10.08 @ 21:21:12 Player: microsand Result: Self-destructed Performance ------------- Evolutions (2) 1000 Regions Visited (4) 800 Robots Destroyed (22) 110 Value Destroyed (377) 377 Prototype IDs (4) 80 Alien Tech Used (0) 0 Bonus (0) 0 TOTAL SCORE: 2367 Bonus ------- None Cogmind --------- Core Integrity 327/550 Matter 270/300 Energy 26/100 System Corruption 0% Temperature Cool (0) Movement Core (350) Ox6 Location -8/Materials Parts ------- > --- POWER (1) -------- (None) > --- PROPULSION (2) --- (None) > --- UTILITY (5) ------ Small Storage Unit Visual Processing Unit Terrain Scanner Recoil Stabilizer ECM Suite > --- WEAPON (3) ------- Shock Rifle Ion Cannon Assault Rifle > --- INVENTORY (8) ---- Light EM Pulse Cannon Grenade Launcher Rocket Launcher Improved Datajack Mining Laser Peak State ------------ > --- POWER ------------ (None) > --- PROPULSION ------- (None) > --- UTILITY ---------- Small Storage Unit Visual Processing Unit Hardlight Generator > --- WEAPON ----------- Ion Cannon Ion Cannon Ion Cannon > --- INVENTORY -------- ECM Suite Light EM Pulse Cannon Assault Rifle Grenade Launcher Rocket Launcher Mining Laser [Rating: 15] Favorites ----------- Power Ion Engine Engine Ion Engine Propulsion Aluminum Leg Leg Aluminum Leg Utility Small Storage Unit Device Seismic Detector Storage Small Storage Unit Processor Visual Processing Unit Weapon Light EM Pulse Cannon Energy Gun Small Laser Energy Cannon Light EM Pulse Cannon Ballistic Gun Assault Rifle Launcher Grenade Launcher Special Weapon Mining Laser Build | -11 -10 -10 -9 -8 ------- Run | Yrd Mat Min Mat Mat Slots Evolved 4 | . . . 2 2 Power . | . . . . . Propulsion . | . . . . . Utility 3 | . . . 1 2 Weapon 1 | . . . 1 . Parts Attached 26 | 7 3 . 6 10 Power 1 | 1 . . . . Engine 1 | 1 . . . . Core . | . . . . . Reactor . | . . . . . Propulsion 2 | 2 . . . . Treads . | . . . . . Leg 2 | 2 . . . . Wheel . | . . . . . Hover . | . . . . . Flight . | . . . . . Utility 7 | 2 . . 1 4 Device 5 | 1 . . . 4 Storage 1 | 1 . . . . Processor 1 | . . . 1 . Hackware . | . . . . . Protection . | . . . . . Artifact . | . . . . . Weapon 16 | 2 3 . 5 6 Energy Gun 2 | 1 . . . 1 Energy Cannon 8 | . . . 4 4 Ballistic Gun 3 | 1 2 . . . Ballistic Cannon . | . . . . . Launcher 2 | . 1 . 1 . Special Weapon 1 | . . . . 1 Impact Weapon . | . . . . . Slashing Weapon . | . . . . . Piercing Weapon . | . . . . . Special Melee Weapon . | . . . . . Unidentified Prototypes . | . . . . . Parts Lost 11 | . . . 4 7 Power 1 | . . . 1 . Propulsion 2 | . . . 2 . Utility 2 | . . . . 2 Weapon 6 | . . . 1 5 Highest Loss Streak 4 | . . . 4 4 To Critical Strikes . | . . . . . Average Backups 4 | . 2 5 7 5 Power . | . . . . . Propulsion . | . . . . . Utility . | . . 1 . . Weapon 4 | . 1 4 6 4 Tool/Special . | . . . . . Unused Backups 4 | 1 . . 1 2 Power . | . . . . . Propulsion 1 | 1 . . . . Utility 1 | . . . 1 . Weapon 1 | . . . . 1 Tool/Special 1 | . . . . 1 Average Slot Usage (%) 82 | . 100 100 88 60 Engine 8 | . 14 14 11 . Leg 15 | . 28 28 20 . Device 14 | . 14 14 11 17 Storage 11 | . 14 14 11 9 Processor 3 | . . . 2 9 Energy Gun 3 | . 7 . . 4 Energy Cannon 13 | . . . 27 15 Ballistic Gun 9 | . 18 28 4 4 Peak Build Rating 15 | 7 7 7 14 15 Average Rating 10 | 4 7 7 11 13 On Entrance 6 | . 7 7 7 9 Naked Turns . | . . . . . Heaviest Build 28 | 13 16 15 23 28 Greatest Support 20 | 20 20 20 20 3 Greatest Overweight (x) 9 | . . . 6 9 Average Overweight (x) 1 | . . . 1 6 Largest Inventory Capacity 8 | 8 8 8 8 8 Average Capacity 7 | 6 8 8 8 8 Most Carried 8 | 4 5 6 8 8 Average Carried 4 | . 2 5 7 5 Final Capacity 8 | 8 8 8 8 8 Final Carried 7 | . 5 6 7 5 Class Distribution -------------------- 45% | Mutant 26% | Gunner 16% | Skirmisher 10% | Tank Dominant Class ---------------- Mutant | -10/Materials Mutant | -10/Mines Gunner | -9/Materials Tank | -8/Materials Resources | -11 -10 -10 -9 -8 ----------- Run | Yrd Mat Min Mat Mat Matter Collected 571 | 206 63 170 40 92 Remotely . | . . . . . Salvage Created 450 | 43 151 . 151 105 Parts 37 | 4 20 . 11 2 Haulers Intercepted . | . . . . . Recyclers Shooed . | . . . . . Parts Field Recycled . | . . . . . Retrieved Matter . | . . . . . Parts Self-Destructed . | . . . . . Prevented . | . . . . . Kills | -11 -10 -10 -9 -8 ------- Run | Yrd Mat Min Mat Mat Combat Hostiles Destroyed 13 | . 6 . 5 2 Guns 3 | . 2 . . 1 Cannons 3 | . . . 2 1 AOE 6 | . 4 . 2 . Classes Destroyed 6 | 1 4 . 1 . Worker 2 | . 1 . 1 . Tunneler 4 | 2 2 . . . Operator 1 | . . . 1 . Watcher 2 | . 1 . 1 . Swarmer 8 | . 5 . 3 . Grunt 5 | . 1 . 2 2 Best Kill Streak 7 | 2 7 . 3 1 Combat Bots Only 4 | . 4 . 2 1 Max Kills in Single Turn 3 | 1 2 . 3 1 Gunslinging . | . . . . . Exploded 2 | . 2 . 2 . Melee . | . . . . . Uniques/NPCs Destroyed . | . . . . . Combat | -11 -10 -10 -9 -8 -------- Run | Yrd Mat Min Mat Mat Hostile Shots Fired 182 | . 27 . 72 83 Missed 54 | . 9 . 23 22 Hits 128 | . 18 . 49 61 Projectile 128 | . 18 . 49 61 Critical Strikes 3 | . . . 1 2 Damage Taken 1521 | . 145 . 496 880 Core 327 | . 24 . 80 223 Absorbed by Shields . | . . . . . Core Remaining (%) 90 | 100 . 90 80 . Volleys Fired 49 | 4 18 . 15 12 Largest 3 | 2 2 . 3 3 Hottest 180 | 60 50 . 180 180 Shots Fired 95 | 8 31 . 31 25 Gun 36 | 8 27 . . 1 Cannon 50 | . . . 28 22 Launcher 7 | . 4 . 3 . Special 2 | . . . . 2 Kinetic 30 | 4 25 . . 1 Thermal 40 | 4 2 . 12 22 Explosive 7 | . 4 . 3 . Electromagnetic 18 | . . . 16 2 Robot Hit Streak 15 | 3 2 . 5 15 Robot Miss Streak 6 | 1 3 . 6 1 Penetration Max . | . . . . . Secondary Targets . | . . . . . Shots Hit Robots 53 | 6 13 . 15 19 Core Hits 25 | 3 11 . 8 3 Critical Kills . | . . . . . Critical Parts Destroyed . | . . . . . Critical Strikes . | . . . . . Melee Attacks . | . . . . . Impact . | . . . . . Slashing . | . . . . . Piercing . | . . . . . Sneak Attacks . | . . . . . Combat Hostiles . | . . . . . Follow-up Attacks . | . . . . . Damage Inflicted 1526 | 56 428 . 617 425 Guns 229 | 56 162 . . 11 Cannons 758 | . . . 344 414 Explosions 533 | . 266 . 267 . Melee . | . . . . . Ramming 6 | . . . 6 . Kinetic 177 | 15 151 . . 11 Thermal 503 | 41 11 . 82 369 Explosive 533 | . 266 . 267 . Electromagnetic 307 | . . . 262 45 Impact . | . . . . . Slashing . | . . . . . Piercing . | . . . . . Highest Corruption . | . . . . . Average Corruption . | . . . . . Corruption Purged . | . . . . . Corruption Blocked . | . . . . . Overload Shots . | . . . . . Overflow Damage 29 | . . . 10 19 Projectiles 29 | . . . 10 19 Explosions . | . . . . . Melee . | . . . . . Knockbacks . | . . . . . Impact . | . . . . . Kinetic . | . . . . . Secondary . | . . . . . Self-Inflicted Damage . | . . . . . Shots . | . . . . . Rammed 2 | . . . 1 1 Targets Rammed 3 | . . . 2 1 Kicked 1 | . . . 1 . Crushed . | . . . . . Highest Temperature 319 | 20 . . 319 126 Average Temperature 93 | 13 . . 127 45 Received Heat Transfer 672 | . 18 . 168 486 Siege Activations . | . . . . . Martial Activations . | . . . . . Shielding Activations . | . . . . . Robots Disrupted . | . . . . . Combat Hostiles . | . . . . . Robots Corrupted 1 | . . . 1 . Combat Hostiles 1 | . . . 1 . Parts Fried . | . . . . . Impact Corruptions . | . . . . . Robots Melted . | . . . . . Combat Hostiles . | . . . . . Parts Melted . | . . . . . Heat Transferred 865 | 100 25 . 148 592 Parts Sabotaged . | . . . . . Parts Stolen . | . . . . . Parts Stripped . | . . . . . Power Chain Reactions . | . . . . . Alert | -11 -10 -10 -9 -8 ------- Run | Yrd Mat Min Mat Mat Maximum Alert Level 1 | . 1 . . . Low Security (%) 95 | 100 82 100 100 100 Level 1 4 | . 17 . . . Level 2 . | . . . . . Level 3 . | . . . . . Level 4 . | . . . . . Level 5 . | . . . . . High Security . | . . . . . Max Security . | . . . . . Peak Influence 226 | 5 226 76 76 27 Initial 76 | . . 76 13 27 Average 28 | . 78 58 12 3 Influence Increases 550 | 10 306 . 175 59 Destroy 0b10 Robot/C 260 | . 120 . 100 40 Destroy 0b10 Robot/NC 45 | 10 20 . 15 . Destroy Leader 44 | . 22 . 22 . Successful Hack 15 | . 8 . 7 . Disable Machine 15 | . 15 . . . Destroy Structure 51 | . 31 . 16 4 Lose Combat Pursuer 120 | . 90 . 15 15 Influence Decreases 550 | 10 110 160 145 125 Entered New Map 182 | . . 120 23 39 Time Decay 301 | 10 110 40 82 59 Lost Part 67 | . . . 40 27 Squads Dispatched . | . . . . . Investigation . | . . . . . Extermination . | . . . . . Reinforcement . | . . . . . Assault . | . . . . . Garrison . | . . . . . Intercept . | . . . . . Searches Triggered . | . . . . . Construction Impeded . | . . . . . Haulers Reinforced . | . . . . . Active Scanning Responses . | . . . . . Cargo Convoy Interrupts . | . . . . . Stealth | -11 -10 -10 -9 -8 --------- Run | Yrd Mat Min Mat Mat Distress Signals 3 | . 1 . 2 . Communications Jammed . | . . . . . Distress Signals . | . . . . . Times Spotted 29 | . 13 . 12 4 Peak Tracking Total 7 | . 7 . 7 2 Tactical Retreats 7 | . 5 . 1 1 Traps | -11 -10 -10 -9 -8 ------- Run | Yrd Mat Min Mat Mat Traps Triggered . | . . . . . Indirectly . | . . . . . Trap Hack Attempts . | . . . . . Triggered . | . . . . . Disarmed . | . . . . . Reprogrammed . | . . . . . Reused . | . . . . . Traps Extracted . | . . . . . Installed . | . . . . . Triggered . | . . . . . Machines | -11 -10 -10 -9 -8 ---------- Run | Yrd Mat Min Mat Mat Machines Disabled 1 | . 1 . . . Max in Single Turn 1 | . 1 . . . Machines Repaired . | . . . . . Machines Dismantled . | . . . . . Machines Sabotaged . | . . . . . Overloaded Fab Kills . | . . . . . Hacking | -11 -10 -10 -9 -8 --------- Run | Yrd Mat Min Mat Mat Machines Accessed 8 | . 4 . 3 1 Terminals 8 | . 4 . 3 1 Fabricators . | . . . . . Repair Stations . | . . . . . Recycling Units . | . . . . . Scanalyzers . | . . . . . Garrison Access . | . . . . . Total Hacks 20 | . 11 . 7 2 Successful 8 | . 4 . 4 . Failed 12 | . 7 . 3 2 Catastrophic . | . . . . . Database Lockouts . | . . . . . Manual 19 | . 10 . 7 2 Terminals 20 | . 11 . 7 2 Fabricators . | . . . . . Repair Stations . | . . . . . Recycling Units . | . . . . . Scanalyzers . | . . . . . Garrison Access . | . . . . . Terminal Hacks 4 | . 2 . 2 . Record 1 | . 1 . . . Prototype ID Bank 2 | . 1 . 1 . Branch Access Points 1 | . . . 1 . Fabricator Hacks . | . . . . . Repair Station Hacks . | . . . . . Recycling Unit Hacks . | . . . . . Scanalyzer . | . . . . . Garrison Access Hacks . | . . . . . Unauthorized Hacks 4 | . 2 . 2 . Terminals 4 | . 2 . 2 . Botnet 4 | . 2 . 2 . Fabricators . | . . . . . Repair Stations . | . . . . . Recycling Units . | . . . . . Scanalyzers . | . . . . . Garrison Access . | . . . . . Data Cores Recovered 1 | . . . 1 . Used 1 | . . . 1 . Hacking Detections 7 | . 4 . 2 1 Full Trace Events . | . . . . . Feedback Events . | . . . . . Feedback Blocked . | . . . . . Robot Schematics Acquired . | . . . . . Robots Built . | . . . . . Authchips . | . . . . . Time . | . . . . . Total Robot Build Rating . | . . . . . Part Schematics Acquired . | . . . . . Parts Built . | . . . . . Authchips . | . . . . . Time . | . . . . . Total Part Build Rating . | . . . . . Parts Repaired . | . . . . . Time . | . . . . . Parts Recycled . | . . . . . Recycled Matter . | . . . . . Retrieved Matter . | . . . . . Retrieved Components . | . . . . . Parts Scanalyzed . | . . . . . Part Schematics Acquired . | . . . . . Parts Damaged . | . . . . . Bothacking | -11 -10 -10 -9 -8 ------------ Run | Yrd Mat Min Mat Mat Used RIF Installer . | . . . . . Robots Hacked . | . . . . . Non-combat . | . . . . . Combat . | . . . . . Robot Hacks Applied . | . . . . . Relay Couplers Released . | . . . . . Fabnet Peak Effective % . | . . . . . Robots Rewired . | . . . . . Allies Hacked . | . . . . . Hacks Repelled . | . . . . . Allies | -11 -10 -10 -9 -8 -------- Run | Yrd Mat Min Mat Mat Total Allies . | . . . . . Largest Group . | . . . . . Highest-Rated Group . | . . . . . Highest-Rated Ally . | . . . . . Total Orders . | . . . . . Ally Attacks . | . . . . . Total Damage . | . . . . . Kills . | . . . . . Allies Corrupted . | . . . . . Allies Melted . | . . . . . Intel | -11 -10 -10 -9 -8 ------- Run | Yrd Mat Min Mat Mat Active Infowar (turns) 1349 | 14 373 89 392 481 Optics 570 | . . . 89 481 Terrain 153 | . . . . 153 Seismic 905 | 14 373 89 392 37 ECM 40 | . . . . 40 Robot Analysis Total . | . . . . . Derelict Logs Recovered 1 | . . 1 . . Drone Launches . | . . . . . Drone Recoveries . | . . . . . Exploration | -11 -10 -10 -9 -8 ------------- Run | Yrd Mat Min Mat Mat Turns Passed 1426 | 91 373 89 392 481 Spaces Moved 676 | 66 260 73 164 113 Core 139 | 22 . . 4 113 Treads . | . . . . . Legs 537 | 44 260 73 160 . Wheels . | . . . . . Hover . | . . . . . Flight . | . . . . . Fastest Speed 50 | 50 120 120 120 200 Average Speed 173 | 96 120 120 192 350 Slowest Speed 500 | 120 120 120 350 500 Overloaded Moves . | . . . . . Propulsion Burnouts . | . . . . . Robots Hopped . | . . . . . Potential Cave-ins . | . . . . . Cave-ins Triggered . | . . . . . Exploration Rate (%) 21 | 3 57 19 20 10 Regions Visited 4 Branch Regions 1 Pre-discovered Areas . | . . . . . Known Exits Taken . | . . . . . Unknown Exits Taken 4 | 1 1 1 1 . Scrap Searched . | . . . . . Spaces Dug 11 | . 9 . . 2 Terrain Destroyed 45 | . 28 . 14 3 Melee . | . . . . . Projectile 3 | . . . . 3 AOE 42 | . 28 . 14 . Terrain Rammed . | . . . . . Walls Destroyed . | . . . . . Machines Disabled . | . . . . . Actions | -11 -10 -10 -9 -8 --------- Run | Yrd Mat Min Mat Mat Total 827 | 86 288 74 210 169 Wait 34 | 1 . 1 12 20 Move 672 | 65 259 72 163 113 Hop . | . . . . . Pick Up 30 | 8 5 1 7 9 Fast Attach . | . . . . . Attach 21 | 7 1 . 2 11 Detach 2 | . 1 . . 1 Swap 10 | . 4 . 5 1 Drop 6 | 1 . . 4 1 Fire 49 | 4 18 . 15 12 Melee . | . . . . . Ram 2 | . . . 1 1 Kick 1 | . . . 1 . Crush . | . . . . . Escape Stasis . | . . . . . Rewire . | . . . . . Trap . | . . . . . Miscellaneous . | . . . . . Route ------- -11/Scrapyard -10/Materials (discovered 2 exits: [*Min x2]) -10/Mines -9/Materials (discovered 3 exits: *Mat / Min x2) -8/Materials History --------- Turn | Location | Event 4 | -11/Scrapyard | Discovered new exit (range 15) 92 | -11/Scrapyard | Entered Materials 268 | -10/Materials | Discovered new exit (range 13) 319 | -10/Materials | Build established: Mutant 434 | -10/Materials | Discovered new exit (range 13) 465 | -10/Materials | Entered Mines 500 | -10/Mines | Learned Materials stockpile data 543 | -10/Mines | Discovered new exit (range 5) 550 | -10/Mines | Received a Rocket Launcher from a helpful Derelict 554 | -10/Mines | Entered Materials 554 | -9/Materials | Evolved 2 slots: Utility x1, Weapon x1 584 | -9/Materials | Identified exit to Mines 838 | -9/Materials | Discovered new exit (range 15) 946 | -9/Materials | Entered another Materials area 946 | -8/Materials | Evolved 2 slots: Utility x2 975 | -8/Materials | Lost 4 parts (1p2n1w) 1144 | -8/Materials | Lost 4 parts (1u3w) 1195 | -8/Materials | Lost 3 parts (1u2w) 1427 | -8/Materials | Self-destructed Last Messages --------------- 01184_ K-01 Serf collects debris. 01194_ Acquired Shock Rifle. 01197_ K-01 Serf collects debris. 01205_ Acquired Recoil Stabilizer. 01208_ K-01 Serf collects debris. 01231_ Acquired 39 matter. 01233_ K-01 Serf collects debris. 01266_ Acquired Terrain Scanner. 01275_ Connecting with Terminal... 01275_ Current location identified: Materials 01286_ Acquired Imp. Datajack. 01329_ K-01 Serf collects debris. 01392_ C-30 ARC bursts open, deploying its payload. 01392_ H-55 Commando unfolds itself. 01392_ Penetrated by Slug. 01393_ K-01 Serf collects debris. 01398_ K-01 Serf cleans the Atomic Centrifuge. 01421_ Penetrated by Slug. Map ----- +----------------------------------------------------+ | ?????????????????????????????????????????????????? | | ?????????????????????????????????????????????????? | | ?????????????????????????????????????????????????? | | ?????????????????????????????????????????????????? | | ?????????????????????????????????????????????????? | | ?????????????????????????????????????????????????? | | ?????????????????????????????????????????????????? | | ?????????????????????????????????????????????????? | | ?????????????????????????????????????????????????? | | ?????????????????????????????????????????????????? | | ???????????????????????????!!!???????????????????? | | ??????????????????? ??????? !?????????????????? | | ????????????????????????#?? # ?????????????? | | ??????????????????????????? " # ?????????????? | | ???????????????????????????"%" ??????????????? | | ??????????????????????????? " #??????????????? | | ????????????????? ????????# #??????????????? | | ?????????????????? ???????? #??????????????? | | ??????????????????????????# ?#?????????????? | | ??????????????????????????# ????????????????? | | ??????????????????????????# ?????????????????? | | ??????????????#???????????# #???????#?????????? | | ???????????????????????#### #??"??????????????? | | ???????????????????#####;;# #?????????????????? | | ???????????????????# = = # # ????#???????????? | | ???????????????????# @# #?????????????????? | | ?????????????#?????# """ h +?????????????????? | | ???????????????????#! """ # ####??????#??????????? | | ?????????????????#?# """ #u#?#???? ?#???????????? | | ????????????????#??# # ###??#????##?????????? | | ???????????????????######## #????????????????????? | | ????????????????#?????????# #????????????????????? | | ?????????????????#???######"###??????????????????? | | ????????????????????## #??????????????????? | | ??????????????????#??# #??????????????????? | | ????????????????????## #??#??#???#????????? | | ????????????????#????# #??????????????????? | | ?????????????????????# ########???????????? | | ????????????????#????# # "T" #?##????????? | | ?????????????????????# # #?#?????????? | | ?????????????????????# # #??#????????? | | ??????????????######## # #???????????? | | ??????????????# #######+#+# #???????????? | | ??????????????# %# """ #??#??#?????? | | ??????????????# + """ #????#??????? | | ??????????????# # """ #???????????? | | ??????????????# ########### #???????????? | | ??????????????## ########???# """ #???????????? | | ???????????????# # #???# """ #???##??????? | | ???????????????# + #???# """ #????#??????? | +----------------------------------------------------+ Best States ------------- Heat Dissipation 31 Energy Generation 10 Energy Capacity 250 Matter Stores 300 Matter Capacity 300 Sight Range 18 Terrain Scan Range 14 Terrain Scan Density 10 ECM Strength 1 Evasion (%) 55 Recoil Reduction 4 Item Schematics ----------------- None Robot Schematics ------------------ None Fabricated ------------ Nothing Repaired ---------- Nothing Alien Tech Used ----------------- None Achievements -------------- None Challenges ------------ None Game ------ Seed ShockArmoredTether Manual? 0 Play Time 00:11:09 Cumulative 11.9 hours Start 2025.10.08 @ 21:06:34 End 2025.10.08 @ 21:21:12 Sessions 3 Manual Loads 0 Difficulty Rogue Special Mode None Game No. 38 Rogue 38 Adventurer 0 Explorer 0 Win Type - Total 0 Types 0/0/0/0/0/0/0/0/0/0 Lore% 15 Gallery% 18 Achievement% 19 Wizard Run 0 Options --------- Layout 1 ASCII 0 Keyboard 0 Movement Numpad Keybinds 0 Fullscreen 1 Font 24/Smallcaps Map View 50x35 Zoom Use 0% Tactical HUD 1 Map Filters NONE Filters NONE Steam 1 RUN: aa265117-09c2-4066-88ed-5b79d1ad92b3